fUSD/lending_fUSD_20260406
["ID","MTS","AMOUNT","RATE_DAILY","PERIOD"]
[419881075,1775463044980,-160.0,0.00014109,2]
[419881076,1775463044989,-160.0,0.00014109,2]
[419881077,1775463044999,-166.66,0.0001411,2]
[419881078,1775463045010,-1500.0,0.00014116,2]
[419881079,1775463045020,-1500.0,0.00014116,2]
[419881080,1775463045030,-433.0,0.00014147,2]
[419881081,1775463045039,-153.6586429,0.0001415,2]
[419881082,1775463045049,-507.0,0.00014197,2]
[419881083,1775463045059,-160.0,0.00014221,7]
[419881084,1775463045070,-188.12684,0.00014221,7]
[419881085,1775463045080,-216.253681,0.00014221,7]
[419881086,1775463045089,-173.939123,0.00014221,7]
[419881087,1775463045099,-181.285866,0.00014221,7]
[419881088,1775463045109,-177.041427,0.00014221,2]
[419881089,1775463045119,-152.0,0.00014221,13]
[419881090,1775463045129,-587.0,0.00014224,2]
[419881091,1775463045139,-166.66,0.00014247,2]
[419881092,1775463045149,-150.0,0.00014247,2]
[419881093,1775463045159,-150.0,0.00014247,2]
[419881094,1775463045169,-150.0,0.00014247,2]
[419881095,1775463045179,-1000.0,0.00014248,2]
[419881096,1775463045189,-501.00927778,0.00014248,2]
[419881097,1775463045199,-18217.91431123,0.00014297,2]
[419881098,1775463045209,-10616.41513845,0.000143,2]
[419881099,1775463045218,-634.23081963,0.0001431,2]
[419881100,1775463045228,-152.0,0.00014338,14]
[419881101,1775463045238,-2471.0,0.00014345,2]
[419881102,1775463045248,-415.0,0.00014345,2]
[419881103,1775463045258,-6021.0,0.00014345,2]
[419881104,1775463045268,-2376.34986658,0.00014357,2]
[419881105,1775463045278,-166.66,0.00014384,2]
[419881106,1775463045287,-1573.0,0.000144,2]
[419881107,1775463045297,-1573.0,0.000144,2]
[419881108,1775463045307,-1573.0,0.000144,2]
[419881109,1775463045318,-150.0,0.000144,2]
[419881110,1775463045328,-154.4710574,0.000144,2]
[419881111,1775463045338,-150.0,0.000144,2]
[419881112,1775463045348,-150.0,0.000144,2]
[419881113,1775463045358,-150.0,0.000144,2]
[419881114,1775463045368,-150.0,0.000144,2]
[419881115,1775463045378,-152.0,0.00014456,15]
[419881116,1775463045389,-500.0,0.00014474,2]
[419881117,1775463045399,-500.0,0.00014474,2]
[419881118,1775463045409,-500.0,0.00014474,2]
[419881119,1775463045418,-500.0,0.00014474,2]
[419881120,1775463045429,-194.45093,0.0001449,2]
[419881121,1775463045439,-259.0,0.00014504,2]
[419881122,1775463045449,-1600.0,0.00014505,2]
[419881123,1775463045458,-150.0,0.00014511,2]
[419881124,1775463045469,-150.085,0.00014511,2]
[419881125,1775463045479,-150.0,0.00014511,2]
[419881126,1775463045488,-622.0,0.00014511,2]
[419881127,1775463045499,-1050.137,0.00014511,2]
[419881128,1775463045509,-1347.0,0.00014511,2]
[419881129,1775463045519,-3523.0,0.00014511,2]
[419881130,1775463045529,-1263.0,0.00014511,2]
[419881131,1775463045540,-926.573,0.00014511,2]
[419881132,1775463045550,-1219.716,0.00014511,2]
[419881133,1775463045561,-1049.80043536,0.00014548,2]
[419881134,1775463045571,-152.0,0.00014573,16]
[419881135,1775463045581,-259.0,0.00014579,2]
[419881136,1775463045591,-1049.80043536,0.00014603,2]
[419881137,1775463045601,-150.0,0.00014616,2]
[419881138,1775463045611,-1049.80043536,0.00014658,2]
[419881139,1775463045621,-152.0,0.0001469,17]
[419881140,1775463045631,-18217.91431123,0.00014698,2]
[419881141,1775463045641,-10616.41513845,0.000147,2]
[419881142,1775463045651,-1049.80043536,0.00014712,2]
[419881143,1775463045661,-363.212686,0.00014714,7]
[419881144,1775463045671,-162.0,0.0001472,2]
[419881145,1775463045681,-2811.0,0.0001472,2]
[419881146,1775463045690,-2811.0,0.0001472,2]
[419881147,1775463045700,-159.45,0.00014755,2]
[419881148,1775463045710,-259.0,0.00014764,2]
[419881149,1775463045720,-1049.80043536,0.00014767,2]
[419881150,1775463045730,-259.0,0.00014796,2]
[419881151,1775463045739,-1500.0,0.00014796,2]
[419881152,1775463045749,-152.0,0.00014808,18]
[419881153,1775463045759,-1049.80043536,0.00014822,2]
[419881154,1775463045768,-150.0,0.00014842,2]
[419881155,1775463045778,-259.0,0.00014856,2]
[419881156,1775463045788,-2376.34986658,0.00014871,2]
[419881157,1775463045797,-1049.80043536,0.00014877,2]
[419881158,1775463045807,-152.0,0.00014925,19]
[419881159,1775463045817,-256.5366,0.00014932,7]
[419881160,1775463045827,-1049.80043536,0.00014959,2]
[419881161,1775463045836,-1049.80043536,0.00015014,2]
[419881162,1775463045846,-162.66,0.00015038,2]
[419881163,1775463045855,-152.0,0.00015042,20]
[419881164,1775463045865,-2000.0,0.00015058,2]
[419881165,1775463045875,-535.43817894,0.00015058,2]
[419881166,1775463045885,-1049.80043536,0.00015068,2]
[419881167,1775463045895,-900.0,0.00015068,2]
[419881168,1775463045905,-18217.91431123,0.00015098,2]
[419881169,1775463045915,-10616.41513845,0.000151,2]
[419881170,1775463045925,-259.0,0.00015109,2]
[419881171,1775463045935,-1049.80043536,0.00015123,2]
[419881172,1775463045946,-259.0,0.00015138,2]
[419881173,1775463045956,-1471.0,0.0001515,2]
[419881174,1775463045966,-152.0,0.0001516,21]
[419881175,1775463045975,-3000.0,0.00015178,2]
[419881176,1775463045985,-1049.80043536,0.00015178,2]
[419881177,1775463045995,-578.20924308,0.00015199,2]
[419881178,1775463046004,-500.0,0.00015199,2]
[419881179,1775463046014,-695.39793187,0.00015199,2]
[419881180,1775463046024,-200.0,0.00015199,2]
[419881181,1775463046034,-500.0,0.00015199,2]
[419881182,1775463046044,-1377.42282659,0.00015199,2]
[419881183,1775463046054,-500.0,0.00015199,2]
[419881184,1775463046065,-500.0,0.00015199,2]
[419881185,1775463046076,-500.0,0.00015199,2]
[419881186,1775463046085,-500.0,0.00015199,2]
[419881187,1775463046095,-500.0,0.00015199,2]
[419881188,1775463046105,-500.0,0.00015199,2]
[419881189,1775463046115,-500.0,0.00015199,2]
[419881190,1775463046126,-500.0,0.00015199,2]
[419881191,1775463046135,-500.0,0.00015199,2]
[419881192,1775463046145,-500.0,0.00015199,2]
[419881193,1775463046155,-500.0,0.00015199,2]
[419881194,1775463046165,-174.61919141,0.00015199,2]
[419881195,1775463046174,-422.67905006,0.00015199,2]
[419881196,1775463046185,-259.0,0.00015206,2]
[419881197,1775463046195,-350.0,0.00015221,2]
[419881198,1775463046205,-500.0,0.00015254,2]
[419881199,1775463046215,-152.0,0.00015277,22]
[419881200,1775463046225,-507.0,0.00015293,3]
[419881201,1775463046235,-881.88,0.00015296,2]
[419881202,1775463046245,-187.3527,0.000153,2]
[419881203,1775463046255,-500.0,0.00015309,2]
[419881204,1775463046264,-350.0,0.00015329,3]
[419881205,1775463046274,-2000.0,0.00015344,2]
[419881206,1775463046285,-433.30199534,0.00015349,2]
[419881207,1775463046295,-2811.0,0.0001536,2]
[419881208,1775463046305,-162.0,0.0001536,2]
[419881209,1775463046316,-1573.0,0.0001536,2]
[419881210,1775463046326,-2811.0,0.0001536,2]
[419881211,1775463046336,-500.0,0.00015364,2]
[419881212,1775463046346,-500.0,0.00015366,2]
[419881213,1775463046356,-500.0,0.00015366,2]
[419881214,1775463046366,-500.0,0.00015366,2]
[419881215,1775463046376,-500.0,0.00015366,2]
[419881216,1775463046386,-500.0,0.00015366,2]
[419881217,1775463046396,-2376.34986658,0.00015386,2]
[419881218,1775463046405,-152.0,0.00015394,23]
[419881219,1775463046415,-500.0,0.00015419,2]
[419881220,1775463046426,-736.0,0.00015421,2]
[419881221,1775463046436,-159.45,0.00015427,2]
[419881222,1775463046446,-4877.6636651,0.00015428,2]
[419881223,1775463046455,-1500.0,0.00015452,2]
[419881224,1775463046465,-3292.0,0.0001546,2]
[419881225,1775463046475,-1573.0,0.00015474,2]
[419881226,1775463046485,-562.85781606,0.00015474,2]
[419881227,1775463046494,-18217.91431123,0.00015499,2]
[419881228,1775463046504,-10616.41513845,0.000155,2]
[419881229,1775463046514,-10100.0,0.000155,5]
[419881230,1775463046524,-152.0,0.00015512,24]
[419881231,1775463046534,-353.73606758,0.0001553,2]
[419881232,1775463046544,-268.0,0.00015552,2]
[419881233,1775463046554,-507.23,0.0001557,2]
[419881234,1775463046565,-3115.35367483,0.0001558,2]
[419881235,1775463046575,-7513.44669462,0.00015593,2]
[419881236,1775463046585,-2000.0,0.000156,5]
[419881237,1775463046594,-823.0,0.00015618,2]
[419881239,1775463046604,-152.0,0.00015629,25]
[419881241,1775463046614,-152.0,0.00015629,5]
[419881242,1775463046623,-500.0,0.0001563,2]
[419881243,1775463046633,-351.0533649,0.0001568,2]
[419881244,1775463046642,-2811.0,0.0001568,2]
[419881245,1775463046651,-618.690184,0.0001568,2]
[419881246,1775463046661,-618.690184,0.0001568,2]
[419881247,1775463046671,-351.207237,0.0001568,2]
[419881248,1775463046681,-618.690184,0.0001568,2]
[419881249,1775463046691,-618.690184,0.0001568,2]
[419881250,1775463046701,-351.207237,0.0001568,2]
[419881251,1775463046710,-351.207237,0.0001568,2]
[419881252,1775463046720,-972.68871,0.0001568,2]
[419881253,1775463046729,-351.207237,0.0001568,2]
[419881254,1775463046739,-972.68871,0.0001568,2]
[419881255,1775463047072,-820.037319,0.0001568,2]
[419881256,1775463047082,-387.859534,0.0001568,2]
[419881257,1775463047092,-972.68871,0.0001568,2]
[419881258,1775463047102,-820.037319,0.0001568,2]
[419881259,1775463047112,-972.68871,0.0001568,2]
[419881260,1775463047122,-387.859534,0.0001568,2]
[419881261,1775463047131,-820.037319,0.0001568,2]
[419881262,1775463047141,-387.859534,0.0001568,2]
[419881263,1775463047151,-820.037319,0.0001568,2]
[419881264,1775463047160,-387.859534,0.0001568,2]
[419881265,1775463047170,-4011.935957,0.0001568,2]
[419881266,1775463047182,-1651.554261,0.0001568,2]
[419881267,1775463047192,-288.585677,0.0001568,2]
[419881268,1775463047202,-4011.935957,0.0001568,2]
[419881269,1775463047212,-1651.554261,0.0001568,2]
[419881270,1775463047222,-288.585677,0.0001568,2]
[419881271,1775463047233,-4011.935957,0.0001568,2]
[419881272,1775463047242,-1958.867294,0.0001568,2]
[419881273,1775463047252,-1651.554261,0.0001568,2]
[419881274,1775463047262,-1178.285869,0.0001568,2]
[419881275,1775463047272,-288.585677,0.0001568,2]
[419881276,1775463047282,-4011.935957,0.0001568,2]
[419881277,1775463047292,-1651.554261,0.0001568,2]
[419881278,1775463047302,-1178.285869,0.0001568,2]
[419881279,1775463047312,-1958.867294,0.0001568,2]
[419881280,1775463047322,-288.585677,0.0001568,2]
[419881281,1775463047332,-1178.285869,0.0001568,2]
[419881282,1775463047342,-1958.867294,0.0001568,2]
[419881283,1775463047352,-1958.867294,0.0001568,2]
[419881284,1775463047362,-1178.285869,0.0001568,2]
[419881285,1775463047372,-1645.388588,0.0001568,2]
[419881286,1775463047382,-1645.388588,0.0001568,2]
[419881287,1775463047392,-1645.388588,0.0001568,2]
[419881288,1775463047402,-1645.388588,0.0001568,2]
[419881289,1775463047412,-151.0,0.0001568,2]
[419881290,1775463047422,-650.370297,0.0001568,2]
[419881291,1775463047431,-650.370297,0.0001568,2]
[419881292,1775463047442,-1244.998121,0.0001568,2]
[419881293,1775463047452,-650.370297,0.0001568,2]
[419881294,1775463047463,-1244.998121,0.0001568,2]
[419881295,1775463047472,-151.0,0.0001568,2]
[419881296,1775463047482,-650.370297,0.0001568,2]
[419881297,1775463047492,-1244.998121,0.0001568,2]
[419881298,1775463047502,-151.0,0.0001568,2]
[419881299,1775463047511,-151.0,0.0001568,2]
[419881300,1775463047521,-212.157081,0.0001568,2]
[419881301,1775463047531,-212.157081,0.0001568,2]
[419881302,1775463047541,-1244.998121,0.0001568,2]
[419881303,1775463047551,-212.157081,0.0001568,2]
[419881304,1775463047562,-212.157081,0.0001568,2]
[419881305,1775463047572,-151.0,0.0001568,2]
[419881306,1775463047582,-151.0,0.0001568,2]
[419881307,1775463047592,-151.0,0.0001568,2]
[419881308,1775463047602,-151.0,0.0001568,2]
[419881309,1775463047612,-2288.748112,0.0001568,2]
[419881310,1775463047622,-322.455967,0.0001568,2]
[419881311,1775463047632,-2288.748112,0.0001568,2]
[419881312,1775463047642,-322.455967,0.0001568,2]
[419881313,1775463047653,-2288.748112,0.0001568,2]
[419881314,1775463047662,-322.455967,0.0001568,2]
[419881315,1775463047672,-2288.748112,0.0001568,2]
[419881316,1775463047681,-151.0,0.0001568,2]
[419881317,1775463047691,-213.593221,0.0001568,2]
[419881318,1775463047702,-322.455967,0.0001568,2]
[419881319,1775463047711,-945.278348,0.0001568,2]
[419881320,1775463047722,-213.593221,0.0001568,2]
[419881321,1775463047732,-801.714847,0.0001568,2]
[419881322,1775463047742,-151.0,0.0001568,2]
[419881323,1775463047751,-945.278348,0.0001568,2]
[419881324,1775463047761,-162.141924,0.0001568,2]
[419881325,1775463047771,-158.811697,0.0001568,2]
[419881326,1775463047780,-213.593221,0.0001568,2]
[419881327,1775463047791,-310.299956,0.0001568,2]
[419881328,1775463047800,-801.714847,0.0001568,2]
[419881329,1775463047810,-945.278348,0.0001568,2]
[419881330,1775463047820,-285.596318,0.0001568,2]
[419881331,1775463047830,-162.141924,0.0001568,2]
[419881332,1775463047840,-213.593221,0.0001568,2]
[419881333,1775463047850,-310.299956,0.0001568,2]
[419881334,1775463047860,-801.714847,0.0001568,2]
[419881335,1775463047870,-945.278348,0.0001568,2]
[419881336,1775463047880,-162.141924,0.0001568,2]
[419881337,1775463047890,-310.299956,0.0001568,2]
[419881338,1775463047899,-801.714847,0.0001568,2]
[419881339,1775463047909,-151.0,0.0001568,2]
[419881340,1775463047919,-162.141924,0.0001568,2]
[419881341,1775463047928,-229.9714,0.0001568,2]
[419881342,1775463047938,-310.299956,0.0001568,2]
[419881343,1775463047948,-151.0,0.0001568,2]
[419881344,1775463047958,-306.481662,0.0001568,2]
[419881345,1775463047968,-306.481662,0.0001568,2]
[419881346,1775463047978,-2690.627434,0.0001568,2]
[419881347,1775463047988,-306.481662,0.0001568,2]
[419881348,1775463047998,-2690.627434,0.0001568,2]
[419881349,1775463048008,-306.481662,0.0001568,2]
[419881350,1775463048018,-2690.627434,0.0001568,2]
[419881351,1775463048027,-2690.627434,0.0001568,2]
[419881352,1775463048037,-495.861592,0.0001568,2]
[419881353,1775463048047,-1885.671826,0.0001568,2]
[419881354,1775463048058,-495.861592,0.0001568,2]
[419881355,1775463048068,-1885.671826,0.0001568,2]
[419881356,1775463048078,-495.861592,0.0001568,2]
[419881357,1775463048087,-1885.671826,0.0001568,2]
[419881358,1775463048097,-495.861592,0.0001568,2]
[419881359,1775463048106,-1885.671826,0.0001568,2]
[419881360,1775463048116,-973.389471,0.0001568,2]
[419881361,1775463048126,-151.0,0.0001568,2]
[419881362,1775463048136,-973.389471,0.0001568,2]
[419881363,1775463048146,-973.389471,0.0001568,2]
[419881364,1775463048156,-2311.622789,0.0001568,2]
[419881365,1775463048166,-3517.839074,0.0001568,2]
[419881366,1775463048175,-973.389471,0.0001568,2]
[419881367,1775463048186,-2311.622789,0.0001568,2]
[419881368,1775463048196,-3517.839074,0.0001568,2]
[419881369,1775463048206,-573.010156,0.0001568,2]
[419881370,1775463048216,-151.0,0.0001568,2]
[419881371,1775463048226,-1355.1514,0.0001568,2]
[419881372,1775463048236,-2311.622789,0.0001568,2]
[419881373,1775463048246,-151.0,0.0001568,2]
[419881374,1775463048256,-573.010156,0.0001568,2]
[419881375,1775463048266,-1355.1514,0.0001568,2]
[419881376,1775463048276,-2311.622789,0.0001568,2]
[419881377,1775463048286,-573.010156,0.0001568,2]
[419881378,1775463048296,-151.0,0.0001568,2]
[419881379,1775463048307,-1355.1514,0.0001568,2]
[419881380,1775463048317,-1013.485065,0.0001568,2]
[419881381,1775463048327,-8581.485126,0.0001568,2]
[419881382,1775463048337,-573.010156,0.0001568,2]
[419881383,1775463048346,-1355.1514,0.0001568,2]
[419881384,1775463048356,-3517.839074,0.0001568,2]
[419881385,1775463048366,-1013.485065,0.0001568,2]
[419881386,1775463048375,-4662.88534,0.0001568,2]
[419881387,1775463048386,-8581.485126,0.0001568,2]
[419881388,1775463048395,-3517.839074,0.0001568,2]
[419881389,1775463048406,-1013.485065,0.0001568,2]
[419881390,1775463048416,-4662.88534,0.0001568,2]
[419881391,1775463048426,-8581.485126,0.0001568,2]
[419881392,1775463048436,-1013.485065,0.0001568,2]
[419881393,1775463048446,-4662.88534,0.0001568,2]
[419881394,1775463048456,-8581.485126,0.0001568,2]
[419881395,1775463048466,-4662.88534,0.0001568,2]
[419881396,1775463048476,-1417.106668,0.0001568,2]
[419881397,1775463048486,-1417.106668,0.0001568,2]
[419881398,1775463048496,-1417.106668,0.0001568,2]
[419881399,1775463048506,-151.0,0.0001568,2]
[419881400,1775463048516,-1417.106668,0.0001568,2]
[419881401,1775463048526,-151.0,0.0001568,2]
[419881402,1775463048536,-151.0,0.0001568,2]
[419881403,1775463048546,-192.312443,0.0001568,2]
[419881404,1775463048558,-151.0,0.0001568,2]
[419881405,1775463048568,-1579.0,0.0001568,2]
[419881406,1775463048578,-875.128491,0.0001568,2]
[419881407,1775463048587,-162.0,0.0001568,2]
[419881408,1775463048597,-875.128491,0.0001568,2]
[419881409,1775463048607,-875.128491,0.0001568,2]
[419881410,1775463048617,-875.128491,0.0001568,2]
[419881411,1775463048626,-151.0,0.0001568,2]
[419881412,1775463048635,-151.0,0.0001568,2]
[419881413,1775463048645,-151.0,0.0001568,2]
[419881414,1775463048654,-151.0,0.0001568,2]
[419881415,1775463048663,-1719.882742,0.0001568,2]
[419881416,1775463048672,-1064.011267,0.0001568,2]
[419881417,1775463048682,-151.0,0.0001568,2]
[419881418,1775463048692,-151.0,0.0001568,2]
[419881419,1775463048701,-151.0,0.0001568,2]
[419881420,1775463048710,-1719.882742,0.0001568,2]
[419881421,1775463048720,-1064.011267,0.0001568,2]
[419881422,1775463048729,-151.0,0.0001568,2]
[419881423,1775463048738,-151.0,0.0001568,2]
[419881424,1775463048747,-583.502984,0.0001568,2]
[419881425,1775463048757,-792.639709,0.0001568,2]
[419881426,1775463048766,-1719.882742,0.0001568,2]
[419881427,1775463048777,-151.0,0.0001568,2]
[419881428,1775463048786,-1064.011267,0.0001568,2]
[419881429,1775463048796,-583.502984,0.0001568,2]
[419881430,1775463048805,-792.639709,0.0001568,2]
[419881431,1775463048816,-1719.882742,0.0001568,2]
[419881432,1775463048826,-1064.011267,0.0001568,2]
[419881433,1775463048835,-151.0,0.0001568,2]
[419881434,1775463048845,-151.0,0.0001568,2]
[419881435,1775463048854,-583.502984,0.0001568,2]
[419881436,1775463048863,-792.639709,0.0001568,2]
[419881437,1775463048873,-1087.898995,0.0001568,2]
[419881438,1775463048882,-3887.775132,0.0001568,2]
[419881439,1775463048892,-151.0,0.0001568,2]
[419881440,1775463048902,-561.299459,0.0001568,2]
[419881441,1775463048912,-583.502984,0.0001568,2]
[419881442,1775463048921,-792.639709,0.0001568,2]
[419881443,1775463048931,-1087.898995,0.0001568,2]
[419881444,1775463048940,-3887.775132,0.0001568,2]
[419881445,1775463048949,-151.0,0.0001568,2]
[419881446,1775463048959,-561.299459,0.0001568,2]
[419881447,1775463048969,-1087.898995,0.0001568,2]
[419881448,1775463048978,-151.0,0.0001568,2]
[419881449,1775463048989,-151.0,0.0001568,2]
[419881450,1775463049000,-3887.775132,0.0001568,2]
[419881451,1775463049010,-156.226732,0.0001568,2]
[419881452,1775463049020,-1045.09319756,0.0001568,2]
[419881453,1775463049029,-1021.76806307,0.0001568,2]
[419881454,1775463049039,-1098.09646566,0.0001568,2]
[419881455,1775463049049,-1083.60035167,0.0001568,2]
[419881456,1775463049058,-1053.98170157,0.0001568,2]
[419881457,1775463049070,-1071.87251058,0.0001568,2]
[419881458,1775463049079,-1082.2553042,0.0001568,2]
[419881459,1775463049089,-1042.2607635,0.0001568,2]
[419881460,1775463049099,-1053.15370103,0.0001568,2]
[419881461,1775463049109,-1060.29401352,0.0001568,2]
[419881462,1775463049118,-1143.00920216,0.0001568,2]
[419881463,1775463049127,-1045.43827812,0.0001568,2]
[419881464,1775463049136,-1035.22440436,0.0001568,2]
[419881465,1775463049147,-1099.11216751,0.0001568,2]
[419881466,1775463049156,-1015.25120317,0.0001568,2]
[419881467,1775463049166,-1000.49768581,0.0001568,2]
[419881468,1775463049176,-1134.99805352,0.0001568,2]
[419881469,1775463049186,-1066.93905744,0.0001568,2]
[419881470,1775463049197,-1056.55120152,0.0001568,2]
[419881471,1775463049207,-1060.52616499,0.0001568,2]
[419881472,1775463049216,-1117.78246135,0.0001568,2]
[419881473,1775463049226,-1091.19654498,0.0001568,2]
[419881474,1775463049236,-1045.18090946,0.0001568,2]
[419881475,1775463049246,-1010.88490326,0.0001568,2]
[419881476,1775463049256,-1090.15668421,0.0001568,2]
[419881477,1775463049267,-1147.57478585,0.0001568,2]
[419881478,1775463049277,-979.17606142,0.0001568,2]
[419881479,1775463049286,-2000.0,0.000157,5]
[419881480,1775463049297,-162.66,0.00015711,2]
[419881481,1775463049308,-353.73606757,0.00015715,2]
[419881482,1775463049318,-200.0,0.00015722,2]
[419881483,1775463049328,-200.0,0.00015722,2]
[419881484,1775463049337,-200.0,0.00015722,2]
[419881485,1775463049347,-3115.35367483,0.0001574,2]
[419881486,1775463049357,-200.0,0.00015747,2]
[419881487,1775463049367,-1428.38747117,0.00015747,2]
[419881488,1775463049377,-181.08010149,0.00015747,2]
[419881489,1775463049387,-160.85454,0.00015753,2]
[419881490,1775463049397,-2000.0,0.000158,5]
[419881491,1775463049406,-2744.77181497,0.000158,2]
[419881492,1775463049416,-1293.0,0.00015803,2]
[419881493,1775463049599,-1232.0,0.00015803,2]
[419881494,1775463049609,-220.0,0.00015805,2]
[419881495,1775463049618,-2000.0,0.0001584,2]
[419881496,1775463049627,-2000.0,0.0001584,2]
[419881497,1775463049636,-500.0,0.00015849,2]
[419881498,1775463049645,-500.0,0.00015849,2]
[419881499,1775463049655,-500.0,0.00015849,2]
[419881500,1775463049665,-500.0,0.00015849,2]
[419881501,1775463049674,-2000.0,0.0001585,2]
[419881502,1775463049684,-268.0,0.00015858,2]
[419881503,1775463049693,-1460.36,0.00015862,2]
[419881504,1775463049702,-500.0,0.00015872,2]
[419881505,1775463049712,-505.85831432,0.00015873,2]
[419881506,1775463049722,-503.10234327,0.00015873,2]
[419881507,1775463049731,-231.36088341,0.00015873,2]
[419881508,1775463049740,-224.78309712,0.00015873,2]
[419881509,1775463049750,-500.0,0.00015873,2]
[419881510,1775463049759,-500.0,0.00015873,2]
[419881511,1775463049768,-500.8742817,0.00015873,2]
[419881512,1775463049777,-501.46029237,0.00015873,2]
[419881513,1775463049787,-500.0,0.00015873,2]
[419881514,1775463049798,-501.96395055,0.00015873,2]
[419881515,1775463049808,-501.12672973,0.00015873,2]
[419881516,1775463049818,-502.00926321,0.00015873,2]
[419881517,1775463049827,-2000.0,0.0001589,2]
[419881518,1775463049837,-2500.0,0.00015892,2]
[419881519,1775463049847,-193.60710548,0.00015893,2]
[419881520,1775463049857,-25509.4978957,0.00015895,2]
[419881521,1775463049867,-168.9077471,0.00015895,2]
[419881522,1775463049876,-151.0,0.00015897,2]
[419881523,1775463049885,-151.0,0.000159,2]
[419881524,1775463049895,-254.697422,0.000159,2]
[419881525,1775463049904,-151.0,0.000159,2]
[419881526,1775463049914,-151.0,0.000159,2]
[419881527,1775463049923,-151.0,0.000159,2]
[419881528,1775463049933,-151.0,0.000159,2]
[419881529,1775463049942,-154.415835,0.000159,2]
[419881530,1775463049951,-151.0,0.000159,2]
[419881531,1775463049960,-151.0,0.000159,2]
[419881532,1775463049970,-154.415835,0.000159,2]
[419881533,1775463049979,-181.036768,0.000159,2]
[419881534,1775463049988,-151.0,0.000159,2]
[419881535,1775463049997,-154.415835,0.000159,2]
[419881536,1775463050007,-151.0,0.000159,2]
[419881537,1775463050017,-154.415835,0.000159,2]
[419881538,1775463050026,-243.454079,0.000159,2]
[419881539,1775463050035,-151.0,0.000159,2]
[419881540,1775463050045,-151.0,0.000159,2]
[419881541,1775463050054,-151.0,0.000159,2]
[419881542,1775463050064,-151.0,0.000159,2]
[419881543,1775463050074,-151.0,0.000159,2]
[419881544,1775463050083,-151.0,0.000159,2]
[419881545,1775463050093,-151.0,0.000159,2]
[419881546,1775463050102,-151.0,0.000159,2]
[419881547,1775463050112,-151.0,0.000159,2]
[419881548,1775463050121,-151.0,0.000159,2]
[419881549,1775463050130,-200.430737,0.000159,2]
[419881550,1775463050139,-151.0,0.000159,2]
[419881551,1775463050149,-200.430737,0.000159,2]
[419881552,1775463050158,-200.430737,0.000159,2]
[419881553,1775463050168,-200.430737,0.000159,2]
[419881554,1775463050177,-151.0,0.000159,2]
[419881555,1775463050186,-151.0,0.000159,2]
[419881556,1775463050196,-151.0,0.000159,2]
[419881557,1775463050206,-196.147739,0.000159,2]
[419881558,1775463050216,-215.22022,0.000159,2]
[419881559,1775463050225,-193.673017,0.000159,2]
[419881560,1775463050235,-196.147739,0.000159,2]
[419881561,1775463050245,-400.0,0.000159,2]
[419881562,1775463050254,-215.22022,0.000159,2]
[419881563,1775463050264,-151.0,0.000159,2]
[419881564,1775463050273,-196.147739,0.000159,2]
[419881565,1775463050284,-215.22022,0.000159,2]
[419881566,1775463050293,-151.0,0.000159,2]
[419881567,1775463050303,-400.0,0.000159,2]
[419881568,1775463050312,-196.147739,0.000159,2]
[419881569,1775463050322,-215.22022,0.000159,2]
[419881570,1775463050331,-400.0,0.000159,2]
[419881571,1775463050341,-400.0,0.000159,2]
[419881572,1775463050350,-151.0,0.000159,2]
[419881573,1775463050360,-151.0,0.000159,2]
[419881574,1775463050369,-190.708715,0.000159,2]
[419881575,1775463050379,-151.0,0.000159,2]
[419881576,1775463050388,-151.0,0.000159,2]